bitfinex/quotes_SOLUSD_20250705
["timestamp","ask_amount","ask_price","bid_price","bid_amount"]
[1751755346010,3.85203874,147.7,147.68,6.9]
[1751755346182,3.85203874,147.69,147.68,6.9]
[1751755347084,3.85203874,147.7,147.68,6.9]
[1751755347283,5.05441091,147.69,147.68,6.9]
[1751755354907,5.05441091,147.69,147.68,6.9]
[1751755356709,5.11441091,147.69,147.68,6.9]
[1751755361319,5.11441091,147.69,147.68,17.52343635]
[1751755361613,5.11441091,147.69,147.68,36.31524678]
[1751755362419,0.06,147.69,147.68,36.31524678]
[1751755365335,0.06,147.69,147.68,32.46320804]
[1751755365502,0.06,147.69,147.68,36.31524678]
[1751755373411,0.06,147.69,147.68,51.72340174]
[1751755373726,0.06,147.69,147.68,36.31524678]
[1751755374029,0.06,147.69,147.68,62.31524678]
[1751755374326,0.06,147.69,147.68,77.72340174]
[1751755379728,0.1,147.73,147.72,44.64964886]
[1751755379905,0.1,147.73,147.72,48.64384917]
[1751755380334,0.1,147.75,147.74,18.79181043]
[1751755380532,5.16450184,147.75,147.74,19.46867519]
[1751755380720,5.16450184,147.75,147.74,23.32071393]
[1751755380921,0.1,147.75,147.74,22.64384917]
[1751755381938,0.1,147.75,147.74,29.41249679]
[1751755382337,1e-08,147.75,147.74,29.41249679]
[1751755382526,1.126438,147.78,147.76,26.0]
[1751755382731,1.126438,147.78,147.77,37.66004917]
[1751755382937,5.05881347,147.79,147.78,3.85203874]
[1751755383112,5.05881347,147.79,147.78,18.79181043]
[1751755383318,5.05881347,147.79,147.78,22.64384917]
[1751755384143,0.1,147.8,147.79,25.55816809]
[1751755384345,0.1,147.8,147.79,29.41020683]
[1751755388431,0.1,147.8,147.79,25.55816809]
[1751755389042,0.1,147.8,147.79,29.41020683]
[1751755389337,0.1,147.8,147.79,25.55816809]
[1751755389914,0.1,147.8,147.78,29.2683395]
[1751755391941,0.1,147.8,147.78,31.41433662]
[1751755394639,0.1,147.8,147.78,25.41630076]
[1751755394845,0.1,147.8,147.78,31.41433662]
[1751755397949,0.1,147.8,147.79,5.99803586]
[1751755398245,0.1,147.8,147.79,31.55620395]
[1751755400245,0.1,147.8,147.79,25.55816809]
[1751755400429,0.1,147.84,147.8,18.79181043]
[1751755400626,0.1,147.84,147.79,74.47209812]
[1751755400627,0.1,147.84,147.83,24.78984629]
[1751755400939,0.1,147.84,147.83,18.79181043]
[1751755401147,2.46500768,147.85,147.83,18.64964886]
[1751755401326,2.46500768,147.85,147.84,51.83181043]
[1751755401522,2.46500768,147.85,147.84,57.82984629]
[1751755401957,2.46500768,147.85,147.84,51.68964886]
[1751755402132,2.46500768,147.85,147.84,58.45371812]
[1751755402444,2.46500768,147.85,147.84,64.45175398]
[1751755406659,2.46500768,147.85,147.84,58.45371812]
[1751755407128,2.46500768,147.85,147.84,64.45175398]
[1751755407941,2.46500768,147.85,147.84,58.45371812]
[1751755408255,2.46500768,147.85,147.84,64.45175398]
[1751755410262,2.46500768,147.85,147.84,58.45371812]
[1751755410463,2.46500768,147.85,147.84,64.45175398]
[1751755411740,2.46500768,147.85,147.84,58.45371812]
[1751755411943,2.46500768,147.85,147.84,64.45175398]
[1751755412351,2.46500768,147.85,147.84,38.45175398]
[1751755413831,2.46500768,147.85,147.84,32.45371812]
[1751755414030,2.46500768,147.85,147.84,13.80406926]
[1751755414528,2.46500768,147.85,147.84,7.04]
[1751755415052,8.46304354,147.85,147.84,7.04]
[1751755415752,2.46500768,147.85,147.84,7.04]
[1751755421758,2.52500768,147.85,147.84,7.07]
[1751755423364,7.56107048,147.85,147.84,7.07]
[1751755432564,2.52500768,147.85,147.84,7.07]
[1751755432867,7.56107048,147.85,147.84,7.07]
[1751755433065,2.52500768,147.85,147.84,7.07]
[1751755435464,7.07804078,147.85,147.84,7.07]
[1751755436265,2.02500768,147.85,147.84,7.07]
[1751755436476,7.07804078,147.85,147.84,7.07]
[1751755436661,2.02500768,147.85,147.84,7.07]
[1751755436969,7.07804078,147.85,147.84,7.07]
[1751755437144,2.02500768,147.85,147.84,7.07]
[1751755437346,7.07804078,147.85,147.84,7.07]
[1751755437655,2.02500768,147.85,147.84,7.07]
[1751755437857,7.07804078,147.85,147.84,7.07]
[1751755438056,2.02500768,147.85,147.84,7.07]
[1751755438250,7.07804078,147.85,147.84,7.07]
[1751755439570,2.02500768,147.85,147.84,7.07]
[1751755440373,7.08257438,147.85,147.84,7.07]
[1751755441885,7.08257438,147.85,147.84,0.03]
[1751755443060,10.9192492,147.85,147.84,0.03]
[1751755449771,17.68286096,147.85,147.84,0.03]
[1751755449966,0.14216157,147.84,147.75,6.5424]
[1751755450183,3.83667482,147.79,147.75,6.5424]
[1751755450483,3.83667482,147.79,147.75,10.37907482]
[1751755450985,3.83667482,147.79,147.75,13.3102739]
[1751755451488,3.83667482,147.79,147.75,17.14694872]
[1751755451786,6.00116128,147.78,147.75,13.3102739]
[1751755457465,6.00116128,147.78,147.75,6.7678739]
[1751755459779,11.0572372,147.79,147.75,6.7678739]
[1751755460589,6.00116128,147.78,147.74,19.82976738]
[1751755460793,6.00116128,147.77,147.74,13.8286061]
[1751755461292,11.05537733,147.78,147.74,13.8286061]
[1751755462296,6.00116128,147.78,147.74,13.8286061]
[1751755464796,6.00116128,147.78,147.74,13.8586061]
[1751755466394,11.05002211,147.78,147.74,13.8586061]
[1751755466598,6.00116128,147.78,147.74,13.8586061]
[1751755466792,11.05002211,147.78,147.74,13.8586061]
[1751755466985,6.00116128,147.78,147.74,13.8586061]
[1751755473906,3.84113934,147.78,147.74,13.8586061]
[1751755475603,3.84113934,147.8,147.75,3.84113934]
[1751755476280,8.88731581,147.8,147.75,3.84113934]
[1751755476481,3.84113934,147.8,147.75,3.84113934]
[1751755476705,3.84113934,147.8,147.76,6.76773145]
[1751755477201,8.88744437,147.8,147.76,6.76773145]
[1751755482394,5.04630503,147.79,147.76,6.76773145]
[1751755486608,3.84113934,147.8,147.76,6.76773145]
[1751755486810,5.05545427,147.79,147.76,6.76773145]
[1751755487011,3.84113934,147.8,147.76,6.76773145]
[1751755487186,5.05545427,147.79,147.76,6.76773145]
[1751755487386,5.05545427,147.78,147.76,6.76773145]
[1751755487708,5.05545427,147.79,147.76,6.76773145]
[1751755487896,5.05545427,147.78,147.76,6.76773145]
[1751755488098,5.05545427,147.79,147.76,6.76773145]
[1751755488298,5.05545427,147.78,147.76,6.76773145]
[1751755488497,3.84113934,147.8,147.76,6.76773145]
[1751755488708,5.05900711,147.79,147.76,6.76773145]
[1751755488897,5.05900711,147.78,147.76,6.76773145]
[1751755489096,3.84113934,147.8,147.76,6.76773145]
[1751755489297,5.05900711,147.79,147.77,3.84113934]
[1751755489495,5.05941234,147.81,147.77,3.84113934]
[1751755489811,3.84113934,147.82,147.77,3.84113934]
[1751755489987,5.05929775,147.81,147.77,3.84113934]
[1751755490188,3.84113934,147.82,147.77,3.84113934]
[1751755490387,5.0592991,147.81,147.77,3.84113934]
[1751755490690,5.0592991,147.8,147.77,3.84113934]
[1751755490901,3.84113934,147.82,147.77,3.84113934]
[1751755491102,5.06070515,147.81,147.77,3.84113934]
[1751755491381,5.06070515,147.8,147.77,3.84113934]
[1751755491594,3.84113934,147.82,147.78,6.76681553]
[1751755491804,5.06225968,147.81,147.78,10.60795487]
[1751755492011,5.06225968,147.8,147.78,10.60795487]
[1751755492202,44.55186106,147.84,147.79,3.84113934]
[1751755492512,5.06373324,147.83,147.79,3.84113934]
[1751755492718,5.06373324,147.82,147.79,3.84113934]
[1751755492889,5.06373324,147.81,147.79,3.84113934]
[1751755493086,0.06,147.84,147.8,3.84113934]
[1751755493315,5.06359291,147.83,147.8,3.84113934]
[1751755493517,5.06359291,147.82,147.8,3.84113934]
[1751755493718,5.06359291,147.81,147.8,10.6070392]
[1751755495509,5.06359291,147.81,147.8,29.25668806]
[1751755495695,0.06,147.84,147.8,10.6070392]
[1751755495898,5.06476199,147.83,147.82,3.84113934]
[1751755496924,0.06,147.84,147.82,10.60605382]
[1751755498294,0.06,147.84,147.83,3.84113934]
[1751755499607,0.06,147.84,147.83,10.60566616]
[1751755506411,0.06,147.84,147.83,11.10566616]
[1751755508410,0.06,147.84,147.83,11.13566616]
[1751755514020,0.06,147.84,147.83,29.78531502]
[1751755517340,0.06,147.84,147.83,29.92747659]
[1751755526940,0.06,147.84,147.83,29.78531502]
[1751755532240,0.06,147.84,147.83,29.92747659]
[1751755542936,0.06,147.84,147.83,26.08633725]
[1751755543137,0.06,147.84,147.83,29.92747659]
[1751755547040,2.02500768,147.85,147.84,0.14216157]
[1751755547237,2.02500768,147.85,147.84,19.34785827]
[1751755548151,2.02500768,147.85,147.84,49.86157639]
[1751755549550,2.02500768,147.85,147.84,83.96157639]
[1751755550267,5.06334298,147.91,147.86,0.14216157]
[1751755550455,1.635,147.92,147.9,3.84113934]
[1751755550767,5.06279622,147.91,147.9,3.84113934]
[1751755552650,5.06279622,147.91,147.9,10.60246455]
[1751755558463,5.06279622,147.91,147.9,3.84113934]
[1751755559468,5.06279622,147.91,147.9,10.60246455]
[1751755566781,5.06279622,147.91,147.9,3.84113934]
[1751755570071,5.06279622,147.91,147.89,22.4907882]
[1751755570274,10.60119117,147.93,147.89,29.2525037]
[1751755570473,5.05828375,147.92,147.89,29.2525037]
[1751755570678,5.05828375,147.91,147.89,29.2525037]
[1751755570877,3.84113934,147.93,147.88,6.96]
[1751755570878,10.60133322,147.93,147.88,17.5633681]
[1751755571077,5.0583087,147.92,147.88,17.5633681]
[1751755571277,5.0583087,147.91,147.88,17.5633681]
[1751755571491,10.60133322,147.93,147.88,17.5633681]
[1751755571662,5.0583147,147.92,147.88,17.5633681]
[1751755571981,5.0583147,147.91,147.88,17.5633681]
[1751755572163,10.60133322,147.93,147.88,17.5633681]
[1751755572479,8.89945693,147.92,147.88,17.5633681]
[1751755572682,5.05831759,147.91,147.89,3.84113934]
[1751755572886,13.05786368,147.94,147.89,3.84113934]
[1751755572887,16.89900302,147.94,147.89,3.84113934]
[1751755573078,5.05866606,147.93,147.89,3.84113934]
[1751755573383,5.05866606,147.92,147.89,3.84113934]
[1751755573687,5.05866606,147.91,147.89,3.84113934]
[1751755573890,3.84113934,147.93,147.89,3.84113934]
[1751755574064,5.05895123,147.92,147.91,3.84113934]
[1751755576769,5.05895123,147.92,147.9,10.60236351]
[1751755577082,3.84113934,147.94,147.91,0.5]
[1751755577382,5.05897187,147.93,147.91,0.5]
[1751755577582,5.05897187,147.92,147.91,0.5]
[1751755591788,5.06507542,147.92,147.91,0.5]
[1751755595196,5.12507542,147.92,147.91,0.5]
[1751755610905,5.12507542,147.92,147.91,11.10200743]
[1751755615813,5.12507542,147.92,147.91,7.26086809]
[1751755618401,5.12507542,147.92,147.91,29.75165629]
[1751755621116,5.12507542,147.92,147.91,25.91051695]
[1751755627121,5.12507542,147.92,147.91,0.5]
[1751755628401,15.72662579,147.92,147.9,6.94]
[1751755628611,8.90621476,147.91,147.9,6.94]
[1751755629115,5.06507542,147.91,147.9,6.94]
[1751755629318,8.90621476,147.91,147.86,6.76311738]
[1751755629522,8.90621476,147.9,147.86,6.76311738]
[1751755629730,5.06507542,147.89,147.86,6.76311738]
[1751755629896,0.06,147.92,147.88,3.84113934]
[1751755630211,5.06791288,147.91,147.89,3.84113934]
[1751755630410,0.06,147.92,147.88,3.84113934]
[1751755630622,5.06808668,147.91,147.88,3.84113934]
[1751755630924,0.06,147.92,147.88,3.84113934]
[1751755631123,5.06808668,147.91,147.89,6.7617824]
[1751755631328,0.06,147.92,147.89,6.7617824]
[1751755631501,5.06806094,147.91,147.89,6.7617824]
[1751755631700,0.06,147.92,147.89,6.7617824]
[1751755632020,5.06806094,147.91,147.89,6.7617824]
[1751755632214,0.06,147.92,147.89,6.7617824]
[1751755632424,5.06798062,147.91,147.89,6.7617824]
[1751755632722,0.06,147.92,147.89,6.7617824]
[1751755632901,5.06803925,147.91,147.89,6.7617824]
[1751755633101,0.06,147.92,147.89,6.7617824]
[1751755633303,5.06803925,147.91,147.89,3.84113934]
[1751755633602,0.06,147.92,147.89,3.84113934]
[1751755633805,5.0680194,147.91,147.89,3.84113934]
[1751755634028,0.06,147.92,147.89,3.84113934]
[1751755634231,5.0680194,147.91,147.89,3.84113934]
[1751755634431,0.06,147.92,147.89,10.60246782]
[1751755634723,5.06799938,147.91,147.89,10.60246782]
[1751755635029,0.06,147.92,147.89,10.60246782]
[1751755635204,5.06799938,147.91,147.89,10.60246782]
[1751755635405,0.06,147.92,147.89,10.60246782]
[1751755635630,5.06798136,147.91,147.89,10.60246782]
[1751755635806,0.06,147.92,147.89,10.60246782]
[1751755636011,5.0679827,147.91,147.89,10.60246782]
[1751755636220,0.06,147.92,147.89,10.60246782]
[1751755636417,5.06790201,147.91,147.89,10.60246782]
[1751755636716,0.06,147.92,147.89,10.60246782]
[1751755636919,5.06796731,147.91,147.89,10.60246782]
[1751755637127,0.06,147.92,147.89,10.60246782]
[1751755637426,5.06788703,147.91,147.89,10.60246782]
[1751755637628,0.06,147.92,147.89,10.60246782]
[1751755637820,5.0679538,147.91,147.89,10.60246782]
[1751755638021,0.06,147.92,147.89,10.60246782]
[1751755638233,5.0679538,147.91,147.89,10.60246782]
[1751755638438,0.06,147.92,147.89,10.60246782]
[1751755638638,5.06794016,147.91,147.89,10.60246782]
[1751755638844,0.06,147.92,147.89,10.60246782]
[1751755639020,5.06794016,147.91,147.89,10.60246782]
[1751755639213,0.06,147.92,147.9,7.26123362]
[1751755639412,5.06786087,147.91,147.9,7.26123362]
[1751755645249,5.06786087,147.91,147.9,29.75202182]
[1751755645454,5.06786087,147.91,147.9,29.89418339]
[1751755645662,0.06,147.92,147.91,18.64964886]
[1751755645952,0.06,147.92,147.91,22.63294977]
[1751755647440,0.06,147.92,147.91,30.06990466]
[1751755653135,0.06,147.92,147.91,35.16990466]
[1751755659380,0.06,147.92,147.91,30.65267852]
[1751755659544,0.06,147.92,147.91,34.49381786]
[1751755660957,0.06,147.92,147.91,30.65267852]
[1751755661263,0.06,147.92,147.91,34.49381786]
[1751755664772,0.06,147.92,147.91,29.39381786]
[1751755665072,0.06,147.92,147.91,28.89381786]
[1751755666892,0.06,147.92,147.91,29.03597943]
[1751755667172,0.06,147.92,147.91,25.19484009]
[1751755667355,0.06,147.92,147.91,29.03597943]
[1751755678597,0.06,147.92,147.91,18.29181043]
[1751755679081,0.06,147.92,147.9,25.41097407]
[1751755681785,0.06,147.92,147.91,0.03]
[1751755687478,5.12124717,147.92,147.91,0.03]
[1751755690582,0.06,147.92,147.91,0.03]
[1751755690776,5.12322952,147.92,147.91,0.03]
[1751755692885,5.12322952,147.92,147.91,29.28165629]
[1751755694299,5.12322952,147.92,147.91,25.44051695]
[1751755695497,0.06,147.92,147.91,25.44051695]
[1751755697600,0.06,147.92,147.91,29.28165629]
[1751755709111,0.06,147.92,147.91,25.44051695]
[1751755709410,0.06,147.92,147.91,29.28165629]
[1751755709606,5.1244131,147.92,147.91,29.28165629]
[1751755711610,5.1244131,147.92,147.91,25.44051695]
[1751755744217,5.1244131,147.92,147.91,0.03]
[1751755744427,8.96555244,147.92,147.91,0.03]
[1751755748810,5.1244131,147.92,147.91,0.03]
[1751755752633,5.1244131,147.92,147.91,25.44051695]
[1751755752929,5.1244131,147.92,147.91,29.28165629]
[1751755753829,10.27017624,147.95,147.91,29.28165629]
[1751755753830,3.84113934,147.95,147.91,29.28165629]
[1751755754132,3.84113934,147.95,147.91,25.44051695]
[1751755757704,9.06384287,147.96,147.91,29.28165629]
[1751755760731,3.84113934,147.95,147.91,29.28165629]
[1751755762731,5.22270353,147.96,147.95,18.64964886]
[1751755762933,5.22270353,147.96,147.95,22.4907882]
[1751755763119,5.22270353,147.96,147.95,18.64964886]
[1751755764429,5.22270353,147.96,147.95,29.24982841]
[1751755765734,10.28438207,147.96,147.95,25.40868907]
[1751755765931,10.28438207,147.96,147.95,29.24982841]
[1751755767237,5.22270353,147.96,147.95,29.24982841]
[1751755767729,5.22270353,147.96,147.95,25.40868907]
[1751755767935,5.22270353,147.96,147.95,29.24982841]
[1751755775149,5.22270353,147.96,147.93,6.75995403]
[1751755775448,9.06384287,147.96,147.93,6.75995403]
[1751755776015,9.06384287,147.96,147.91,48.5207882]
[1751755776222,9.06384287,147.96,147.91,0.03]
[1751755776223,5.05505387,147.95,147.91,0.03]
[1751755776423,3.84113934,147.93,147.91,0.03]
[1751755776725,5.05505387,147.92,147.91,0.03]
[1751755779541,3.84113934,147.93,147.91,0.03]
[1751755783026,3.84113934,147.94,147.91,0.03]
[1751755783346,5.05450282,147.93,147.91,0.03]
[1751755783646,3.84113934,147.94,147.91,0.03]
[1751755783832,5.05436456,147.93,147.91,0.03]
[1751755784130,3.84113934,147.94,147.91,0.03]
[1751755784332,5.05422842,147.93,147.91,0.03]
[1751755784641,3.84113934,147.94,147.91,0.03]
[1751755784824,5.05422835,147.93,147.91,0.03]
[1751755785024,3.84113934,147.94,147.91,0.03]
[1751755785321,5.05422969,147.93,147.91,0.03]
[1751755785644,3.84113934,147.94,147.91,0.03]
[1751755785850,5.05430079,147.93,147.91,0.03]
[1751755786027,3.84113934,147.94,147.91,0.03]
[1751755786227,5.05430079,147.93,147.91,0.03]
[1751755786435,3.84113934,147.94,147.91,0.03]
[1751755786636,5.05417353,147.93,147.91,0.03]
[1751755786947,6.85220353,147.96,147.93,18.64964886]
[1751755786948,5.22270353,147.96,147.93,18.64964886]
[1751755787151,5.05376742,147.95,147.93,18.64964886]
[1751755787370,5.05376742,147.94,147.93,22.4907882]
[1751755788526,5.05376742,147.94,147.93,29.25074223]
[1751755792656,5.05433023,147.94,147.93,29.25074223]
[1751755793559,0.06,147.95,147.93,29.25074223]
[1751755793763,0.06,147.95,147.94,22.4907882]
[1751755793965,5.11445587,147.95,147.94,29.25028529]
[1751755797042,5.11445587,147.95,147.94,25.40914595]
[1751755801742,5.11445587,147.95,147.91,5.13]
[1751755802070,8.89720855,147.94,147.91,0.03]
[1751755802368,8.89720855,147.93,147.91,0.03]
[1751755802566,5.05606921,147.92,147.91,0.03]
[1751755823780,11.81648024,147.92,147.91,0.03]
[1751755824090,21.97574754,147.92,147.91,0.03]
[1751755825182,15.65761958,147.92,147.91,0.03]
[1751755826272,21.97574754,147.92,147.91,0.03]
[1751755827790,1.70516157,147.91,147.85,0.03]
[1751755827986,3.84113934,147.86,147.85,0.03]
[1751755828865,15.66076592,147.86,147.85,0.03]
[1751755829269,5.05647225,147.86,147.85,0.03]
[1751755829472,11.81962658,147.86,147.85,0.03]
[1751755829672,15.66076592,147.86,147.85,0.03]
[1751755833304,11.81962658,147.86,147.85,0.03]
[1751755833481,3.84113934,147.86,147.85,0.03]
[1751755833669,8.89761159,147.86,147.85,0.03]
[1751755834788,15.66076592,147.86,147.85,0.03]
[1751755835663,15.80292749,147.86,147.85,0.03]
[1751755840199,11.81962658,147.86,147.85,0.03]
[1751755840399,15.66076592,147.86,147.85,0.03]
[1751755841200,5.05647225,147.86,147.85,0.03]
[1751755841405,11.81962658,147.86,147.85,0.03]
[1751755841914,6.76315433,147.86,147.85,0.03]
[1751755846911,12.75755902,147.87,147.85,0.03]
[1751755851612,5.99469356,147.86,147.85,0.03]
[1751755855328,12.75762016,147.87,147.85,0.03]
[1751755856028,5.03824373,147.86,147.85,0.03]
[1751755856716,11.03293729,147.87,147.85,0.03]
[1751755860840,17.79567034,147.87,147.85,0.03]
[1751755861024,5.03824373,147.86,147.85,0.03]
[1751755866727,5.05294698,147.86,147.85,0.03]
[1751755872134,11.3691307,147.86,147.85,0.03]
[1751755872522,11.40473653,147.86,147.85,0.03]
[1751755873721,11.40473653,147.86,147.85,22.51640864]
[1751755873919,5.06877179,147.86,147.85,24.14920864]
[1751755874135,5.06877179,147.86,147.85,31.12920864]
[1751755876049,5.06877179,147.86,147.85,37.8928204]
[1751755876843,5.06877179,147.86,147.85,34.05606062]
[1751755877040,5.06877179,147.86,147.85,37.8928204]
[1751755877446,6.33596474,147.9,147.85,37.8928204]
[1751755877647,5.06637612,147.89,147.87,3.83675978]
[1751755877838,5.06637612,147.88,147.87,3.83675978]
[1751755878237,5.06625372,147.88,147.87,3.83675978]
[1751755882447,5.06625372,147.88,147.87,3.33675978]
[1751755883956,5.06123335,147.88,147.87,3.33675978]
[1751755895261,5.06123335,147.88,147.87,10.09945674]
[1751755895562,5.06123335,147.88,147.87,28.7491056]
[1751755895968,5.06123335,147.88,147.87,29.2491056]
[1751755898267,0.06,147.91,147.87,29.2491056]
[1751755898566,5.05757493,147.9,147.88,10.5987848]
[1751755898738,5.05757493,147.89,147.88,10.5987848]
[1751755900667,5.05757493,147.89,147.87,11.09913409]
[1751755900854,0.06,147.91,147.87,11.09913409]
[1751755901048,5.05724449,147.9,147.87,11.09913409]
[1751755901249,5.05724449,147.89,147.87,11.09913409]
[1751755901449,0.06,147.91,147.87,11.09913409]
[1751755901673,5.05735756,147.9,147.87,11.09913409]
[1751755901851,5.05735756,147.89,147.87,11.09913409]
[1751755902053,0.06,147.91,147.87,11.09913409]
[1751755902258,5.05762416,147.9,147.87,11.09913409]
[1751755902460,5.05762416,147.89,147.87,11.09913409]
[1751755902658,0.06,147.91,147.87,11.09913409]
[1751755902855,5.05754059,147.9,147.87,11.09913409]
[1751755903062,3.89675978,147.91,147.87,0.5]
[1751755903263,5.05739392,147.9,147.87,0.5]
[1751755903467,3.89675978,147.91,147.87,0.5]
[1751755903670,5.05685872,147.9,147.87,0.5]
[1751755903974,3.89675978,147.91,147.87,0.5]
[1751755904177,5.05686007,147.9,147.87,0.5]
[1751755904363,10.65783557,147.91,147.87,0.5]
[1751755904677,10.65783557,147.91,147.87,7.26264424]
[1751755904678,5.05658511,147.9,147.87,7.26264424]
[1751755904879,0.06,147.91,147.88,3.83675978]
[1751755905092,5.05658376,147.9,147.88,3.83675978]
[1751755905284,0.06,147.91,147.88,3.83675978]
[1751755905570,5.05618824,147.9,147.88,3.83675978]
[1751755905764,0.06,147.91,147.88,3.83675978]
[1751755905962,5.05628818,147.9,147.88,3.83675978]
[1751755906164,0.06,147.91,147.88,3.83675978]
[1751755906482,5.05583819,147.9,147.88,10.5989747]
[1751755906673,0.06,147.91,147.88,10.5989747]
[1751755906879,5.05607435,147.9,147.88,10.5989747]
[1751755907071,0.06,147.91,147.88,10.5989747]
[1751755907273,5.05607435,147.9,147.88,10.5989747]
[1751755907483,0.06,147.91,147.88,10.5989747]
[1751755907668,5.05605409,147.9,147.88,10.5989747]
[1751755907861,0.06,147.91,147.88,10.5989747]
[1751755908168,5.05605409,147.9,147.88,10.5989747]
[1751755908362,0.06,147.91,147.88,10.5989747]
[1751755908560,5.05612512,147.9,147.88,10.5989747]
[1751755908870,0.06,147.91,147.88,10.5989747]
[1751755909059,5.05612377,147.9,147.88,10.5989747]
[1751755909260,0.06,147.91,147.88,10.5989747]
[1751755909468,5.05628623,147.9,147.88,10.5989747]
[1751755909667,0.06,147.91,147.88,10.5989747]
[1751755909868,5.05628623,147.9,147.88,10.5989747]
[1751755910074,0.06,147.91,147.88,10.5989747]
[1751755910279,5.05628758,147.9,147.88,10.5989747]
[1751755910461,0.06,147.91,147.88,10.5989747]
[1751755910667,5.05654494,147.9,147.88,10.5989747]
[1751755910869,0.06,147.91,147.88,10.5989747]
[1751755911073,5.05654494,147.9,147.88,10.5989747]
[1751755911274,0.06,147.91,147.88,10.5989747]
[1751755911475,5.05690283,147.9,147.88,10.5989747]
[1751755911673,0.06,147.91,147.88,10.5989747]
[1751755911882,5.05690283,147.9,147.88,10.5989747]
[1751755912384,0.06,147.91,147.88,10.5989747]
[1751755913378,0.06,147.91,147.88,3.83675978]
[1751755913590,6.82093746,147.91,147.87,4.33675978]
[1751755913889,6.82093746,147.91,147.87,0.5]
[1751755914085,5.05844938,147.9,147.87,0.5]
[1751755914255,5.05844938,147.89,147.87,0.5]
[1751755914459,5.05844938,147.88,147.87,0.5]
[1751755916881,5.05844938,147.88,147.87,4.33675978]
[1751755919764,5.05844938,147.88,147.87,11.09945674]
[1751755922188,5.06691303,147.88,147.87,11.12945674]
[1751755922881,0.06,147.9,147.87,11.12945674]
[1751755923191,5.06687916,147.89,147.87,11.12945674]
[1751755923395,0.06,147.9,147.87,11.12945674]
[1751755923578,5.06695457,147.89,147.87,11.12945674]
[1751755923780,0.06,147.9,147.87,11.12945674]
[1751755923982,5.06695457,147.89,147.87,11.12945674]
[1751755924176,0.06,147.9,147.87,11.12945674]
[1751755924379,5.06695993,147.89,147.87,11.12945674]
[1751755924578,0.06,147.9,147.87,11.12945674]
[1751755924797,5.06704086,147.89,147.87,11.12945674]
[1751755925097,0.06,147.9,147.87,11.12945674]
[1751755925395,5.06704086,147.89,147.87,11.12945674]
[1751755925574,0.06,147.9,147.87,11.12945674]
[1751755925775,5.06714192,147.89,147.87,11.12945674]
[1751755926099,0.06,147.9,147.87,11.12945674]
[1751755926284,5.06714192,147.89,147.87,0.53]
[1751755926477,6.82136374,147.9,147.87,0.53]
[1751755926677,5.06725619,147.89,147.87,0.53]
[1751755926876,5.06735906,147.88,147.87,0.53]
[1751755932527,5.06735906,147.88,147.87,4.36675978]
[1751755936399,5.06735906,147.88,147.87,3.86675978]
[1751755937798,5.06735906,147.88,147.87,10.62945674]
[1751755938002,0.06,147.9,147.87,10.62945674]
[1751755938188,5.06895745,147.89,147.87,0.03]
[1751755938503,0.06,147.9,147.88,3.83675978]
[1751755938702,0.06,147.9,147.89,3.83675978]
[1751755938911,5.12902867,147.9,147.89,3.83675978]
[1751755940604,0.06,147.9,147.89,3.83675978]
[1751755940792,0.06,147.9,147.89,10.59854218]
[1751755941286,0.06,147.9,147.89,11.09854218]
[1751755943594,5.12818858,147.9,147.89,11.09854218]
[1751755950611,5.12818858,147.9,147.89,29.74819104]
[1751755952319,0.06,147.9,147.89,29.74819104]
[1751755952811,5.12600385,147.9,147.89,29.74819104]
[1751755954019,0.06,147.9,147.89,29.74819104]
[1751755957905,0.06,147.9,147.89,7.2617824]
[1751755958107,0.06,147.9,147.89,11.09854218]
[1751755958412,0.06,147.9,147.89,4.33675978]
[1751755958611,5.12371603,147.9,147.89,0.5]
[1751755958916,5.12371603,147.9,147.88,6.98]
[1751755959121,0.06,147.9,147.88,6.98]
[1751755960219,5.06416766,147.89,147.88,6.98]
[1751755969942,5.06416766,147.89,147.87,0.03]
[1751755970235,5.06416766,147.88,147.87,0.03]
[1751755970439,5.06416766,147.88,147.87,3.86675978]
[1751755973521,5.06416766,147.88,147.87,10.62945674]
[1751755973836,0.06,147.9,147.87,11.12945674]
[1751755974045,0.06,147.9,147.89,3.83675978]
[1751755974214,5.1226987,147.9,147.89,3.83675978]
[1751755977126,5.1226987,147.9,147.89,10.59854218]
[1751755977324,0.06,147.9,147.89,10.59854218]